fUSD/lending_fUSD_20260322
["ID","MTS","AMOUNT","RATE_DAILY","PERIOD"]
[408714176,1774164684214,-1201.42754753,0.00046,14]
[408714177,1774164684235,-1201.42754753,0.00046,14]
[408714178,1774164684256,-1201.42754753,0.00046,14]
[408714179,1774164684279,-1201.42754753,0.00046,14]
[408714180,1774164684301,-798.29184592,0.00046,120]
[408714181,1774164684322,-267.07738463,0.00046,120]
[408714182,1774164684342,-211.46,0.00046,30]
[408714183,1774164684365,-3304.38,0.00046,30]
[408714184,1774164684387,-307.48060666,0.00046,2]
[408714185,1774164684408,-3010.77498566,0.00046,120]
[408714186,1774164684429,-1329.63469721,0.00046,30]
[408714187,1774164684451,-1041.64414088,0.00046,30]
[408714188,1774164684471,-1990.0,0.00046027,120]
[408714189,1774164684493,-150.0,0.00046049,30]
[408714190,1774164684516,-161.23954455,0.00046075,5]
[408714191,1774164684536,-824.87,0.00046143,30]
[408714192,1774164684556,-156.80204225,0.00046181,2]
[408714193,1774164684576,-150.0,0.00046187,30]
[408714194,1774164684596,-250.0,0.00046192,120]
[408714195,1774164684617,-250.0,0.00046192,120]
[408714196,1774164684628,-250.0,0.00046192,120]
[408714197,1774164684637,-250.0,0.00046192,120]
[408714198,1774164684646,-320.58,0.00046192,120]
[408714199,1774164684655,-6340.78688227,0.0004628,2]
[408714200,1774164684663,-1484.221,0.00046292,30]
[408714201,1774164684672,-1990.0,0.00046301,120]
[408714202,1774164684681,-194.43402398,0.00046313,60]
[408714203,1774164684690,-150.0,0.00046326,30]
[408714204,1774164684699,-75000.0,0.00046333,120]
[408714205,1774164684708,-116928.02122091,0.0004635,60]
[408714206,1774164684971,-1138.89041924,0.00013354,2]
[408714207,1774164685003,3096.02142,9.452e-05,2]
[408714208,1774164686450,-250.0,9.726e-05,2]
[408714209,1774164686479,-225.0,0.0001,2]
[408714210,1774164686508,-250.0,0.00010397,2]
[408714211,1774164686534,-225.0,0.00010621,2]
[408714212,1774164686563,-250.0,0.00010899,2]
[408714213,1774164686589,-226.0,0.00011152,2]
[408714214,1774164714609,150.0,0.00016,120]
[408714217,1774164889431,578.38432027,9.499e-05,2]
[408714218,1774164889467,826.71098435,9.499e-05,2]
[408714219,1774164889508,826.71098435,9.499e-05,2]
[408714220,1774164889558,826.71098435,9.499e-05,2]
[408714221,1774164889604,826.71098435,9.499e-05,2]
[408714222,1774164889634,826.71098435,9.499e-05,2]
[408714223,1774164889666,826.71098435,9.499e-05,2]
[408714224,1774164889707,826.71098435,9.499e-05,2]
[408714225,1774164889744,782.64878928,9.499e-05,2]
[408714226,1774164889767,44.06219507,9.499e-05,2]
[408714227,1774164889796,826.71098435,9.499e-05,2]
[408714228,1774164889825,826.71098435,9.499e-05,2]
[408714229,1774164889855,826.71098435,9.499e-05,2]
[408714230,1774164889894,826.71098435,9.499e-05,2]
[408714231,1774164889932,826.71098435,9.499e-05,2]
[408714232,1774164889966,826.71098435,9.499e-05,2]
[408714233,1774164890000,826.71098435,9.499e-05,2]
[408714234,1774164890035,826.71098435,9.499e-05,2]
[408714235,1774164890071,826.71098435,9.499e-05,2]
[408714236,1774164890104,826.71098435,9.499e-05,2]
[408714237,1774164890138,826.71098435,9.499e-05,2]
[408714238,1774164890185,826.71098435,9.499e-05,2]
[408714239,1774164890228,35.41599273,9.499e-05,2]
[408714240,1774164890252,791.29499162,9.499e-05,2]
[408714241,1774164890282,826.71098435,9.499e-05,2]
[408714242,1774164890313,826.71098435,9.499e-05,2]
[408714243,1774164890346,826.71098435,9.499e-05,2]
[408714244,1774164890383,826.71098435,9.499e-05,2]
[408714245,1774164890421,826.71098435,9.499e-05,2]
[408714246,1774164890455,826.71098435,9.499e-05,2]
[408714247,1774164890499,826.71098435,9.499e-05,2]
[408714248,1774164890543,826.71098435,9.499e-05,2]
[408714249,1774164890582,826.71098435,9.499e-05,2]
[408714250,1774164890628,826.71098435,9.499e-05,2]
[408714251,1774164890665,826.71098435,9.499e-05,2]
[408714252,1774164890701,114.89418053,9.499e-05,2]
[408714253,1774164890727,711.81680382,9.499e-05,2]
[408714254,1774164890757,826.71098435,9.499e-05,2]
[408714255,1774164890788,826.71098435,9.499e-05,2]
[408714256,1774164890823,826.71098435,9.499e-05,2]
[408714257,1774164890865,826.71098435,9.499e-05,2]
[408714258,1774164890934,826.71098435,9.499e-05,2]
[408714259,1774164890970,826.71098435,9.499e-05,2]
[408714260,1774164891017,826.71098435,9.499e-05,2]
[408714261,1774164891057,826.71098435,9.499e-05,2]
[408714262,1774164891093,826.71098435,9.499e-05,2]
[408714263,1774164891131,826.71098435,9.499e-05,2]
[408714264,1774164891176,826.71098435,9.499e-05,2]
[408714265,1774164891293,194.37236833,9.499e-05,2]
[408714266,1774164891322,632.33861602,9.499e-05,2]
[408714267,1774164891353,826.71098435,9.499e-05,2]
[408714268,1774164891386,826.71098435,9.499e-05,2]
[408714269,1774164891495,826.71098435,9.499e-05,2]
[408714270,1774164891550,826.71098435,9.499e-05,2]
[408714271,1774164891601,826.71098435,9.499e-05,2]
[408714272,1774164891784,826.71098435,9.499e-05,2]
[408714273,1774164903336,150.0,0.00016,120]
[408714274,1774164931499,826.71098435,9.499e-05,2]
[408714275,1774164931555,826.71098435,9.499e-05,2]
[408714276,1774164931596,826.71098435,9.499e-05,2]
[408714277,1774164931644,826.71098435,9.499e-05,2]
[408714278,1774164931678,826.71098435,9.499e-05,2]
[408714279,1774164931718,826.71098435,9.499e-05,2]
[408714280,1774164931767,826.71098435,9.499e-05,2]
[408714281,1774164931813,826.71098435,9.499e-05,2]
[408714282,1774164931863,826.71098435,9.499e-05,2]
[408714283,1774164931906,826.71098435,9.499e-05,2]
[408714284,1774164931951,826.71098435,9.499e-05,2]
[408714285,1774164932363,826.71098435,9.499e-05,2]
[408714286,1774164932415,79.4781878,9.499e-05,2]
[408714287,1774164932441,747.23279655,9.499e-05,2]
[408714288,1774164932474,826.71098435,9.499e-05,2]
[408714289,1774164932504,826.71098435,9.499e-05,2]
[408714290,1774164932536,826.71098435,9.499e-05,2]
[408714291,1774164932571,826.71098435,9.499e-05,2]
[408714292,1774164932601,826.71098435,9.499e-05,2]
[408714293,1774164932644,826.71098435,9.499e-05,2]
[408714294,1774164932677,826.71098435,9.499e-05,2]
[408714295,1774164932708,826.71098435,9.499e-05,2]
[408714296,1774164932738,826.71098435,9.499e-05,2]
[408714297,1774164932768,826.71098435,9.499e-05,2]
[408714298,1774164932798,826.71098435,9.499e-05,2]
[408714299,1774164932830,158.9563756,9.499e-05,2]
[408714300,1774164932855,667.75460875,9.499e-05,2]
[408714301,1774164932886,826.71098435,9.499e-05,2]
[408714302,1774164932916,826.71098435,9.499e-05,2]
[408714303,1774164932948,826.71098435,9.499e-05,2]
[408714304,1774164932987,826.71098435,9.499e-05,2]
[408714305,1774164933016,826.71098435,9.499e-05,2]
[408714306,1774164933046,826.71098435,9.499e-05,2]
[408714307,1774164933076,826.71098435,9.499e-05,2]
[408714308,1774164933113,826.71098435,9.499e-05,2]
[408714309,1774164933148,826.71098435,9.499e-05,2]
[408714310,1774164933180,826.71098435,9.499e-05,2]
[408714311,1774164933213,826.71098435,9.499e-05,2]
[408714312,1774164933244,238.4345634,9.499e-05,2]
[408714313,1774164933271,588.27642095,9.499e-05,2]
[408714314,1774164933302,826.71098435,9.499e-05,2]
[408714317,1774165091813,150.0,0.00016,120]
[408714318,1774165139843,300.0,0.000125,4]
[408714319,1774165162171,1483.61,6.456e-05,2]
[408714320,1774165162219,1483.61,6.796e-05,2]
[408714321,1774165162415,1483.61,7.135e-05,2]
[408714322,1774165162620,1483.61,7.475e-05,2]
[408714323,1774165162817,1483.61,7.815e-05,2]
[408714324,1774165162999,1483.61,8.155e-05,2]
[408714325,1774165163185,1098.35,8.494e-05,2]
[408714326,1774165163207,385.26,8.494e-05,2]
[408714327,1774165163595,1483.61,8.834e-05,2]
[408714328,1774165163793,1483.61,9.174e-05,2]
[408714329,1774165163994,1483.61,9.514e-05,2]
[408714330,1774165164183,1483.61,9.854e-05,2]
[408714331,1774165164369,1483.61,0.00010193,2]
[408714332,1774165164558,1483.61,0.00010533,2]
[408714333,1774165164736,713.09,0.00010873,2]
[408714334,1774165164759,770.52,0.00010873,2]
[408714335,1774165164918,1483.61,0.00011213,2]
[408714336,1774165165108,1483.61,0.00011553,2]
[408714337,1774165165537,1483.61,0.00011892,2]
[408714338,1774165165729,1483.61,0.00012232,2]
[408714339,1774165278730,206.6786753,0.000125,2]
[408714340,1774165279630,150.0,0.00016,120]
[408714345,1774165421681,156.0,6.457e-05,2]
[408714346,1774165421905,156.0,6.457e-05,2]
[408714347,1774165468031,150.0,0.00016,120]
[408714348,1774165535035,500.0,0.00012423,2]
[408714349,1774165552351,841.14,0.000125,2]
[408714350,1774165639887,400.0,0.000125,4]
[408714351,1774165655357,150.0,0.00016,120]
[408714352,1774165721836,10000.01,0.00012149,2]
[408714353,1774165721857,10000.01,0.00012149,2]
[408714357,1774165832216,-536.78267876,0.00012064,2]
[408714358,1774165832228,-663.21732124,0.00012064,2]
[408714359,1774165832237,-9572.91,0.00012065,2]
[408714360,1774165832246,-300.0,0.00012148,2]
[408714361,1774165832255,-300.0,0.00012148,2]
[408714362,1774165832264,-5773.47,0.00012149,2]
[408714363,1774165832273,-1483.61,0.00012572,2]
[408714364,1774165832282,-3990.07,0.00012595,2]
[408714365,1774165832291,-900.0,0.000126,4]
[408714366,1774165832300,-1300.0,0.000127,4]
[408714367,1774165832310,-1800.0,0.000128,4]
[408714368,1774165832319,-206.67867528,0.00012811,2]
[408714369,1774165832328,-2300.0,0.000129,4]
[408714370,1774165832337,-150.0,0.000129,2]
[408714371,1774165832346,-1483.61,0.00012912,2]
[408714372,1774165832355,-206.67867528,0.0001297,2]
[408714373,1774165832364,-4391.81706609,0.0001297,2]
[408714374,1774165832374,-1042.04499952,0.00013,7]
[408714375,1774165832386,-592.93797328,0.00013001,2]
[408714376,1774165832396,-5587.4214628,0.0001306,2]
[408714377,1774165832405,-6763.5247,0.0001306,2]
[408714378,1774165832414,-150.0,0.00013068,2]
[408714379,1774165832423,-2515.595,0.00013069,2]
[408714380,1774165832431,-175.61,0.00013069,2]
[408714381,1774165832440,-11243.49734363,0.00013069,2]
[408714382,1774165832449,-250.0,0.00013069,2]
[408714383,1774165832458,-14929.8385,0.00013069,2]
[408714384,1774165832466,-209.71,0.0001307,2]
[408714385,1774165832475,-13163.68844799,0.0001307,2]
[408714386,1774165832484,-319.79425984,0.0001307,2]
[408714387,1774165832493,-1521.2547891,0.0001307,2]
[408714388,1774165832501,-12453.54905526,0.0001307,2]
[408714389,1774165832509,-258.63753161,0.0001307,2]
[408714390,1774165832518,-18986.5356,0.0001307,2]
[408714391,1774165832526,-2500.0,0.0001307,2]
[408714392,1774165832533,-500.0,0.00013073,2]
[408714393,1774165832541,-500.0,0.00013073,2]
[408714394,1774165832549,-500.0,0.00013073,2]
[408714395,1774165832558,-500.0,0.00013073,2]
[408714396,1774165832567,-500.0,0.00013073,2]
[408714397,1774165832577,-500.0,0.00013073,2]
[408714398,1774165832586,-501.45694581,0.00013073,2]
[408714399,1774165832595,-500.0,0.00013073,2]
[408714400,1774165832604,-314.25079956,0.00013073,2]
[408714401,1774165832615,-500.0,0.00013073,2]
[408714402,1774165832624,-500.48919478,0.00013073,2]
[408714403,1774165832634,-719.76929868,0.00013073,2]
[408714404,1774165832644,-15310.48292945,0.00013073,2]
[408714405,1774165832653,-500.0,0.00013133,2]
[408714406,1774165832662,-4525.0372,0.00013151,2]
[408714407,1774165832672,-559.01632212,0.0001316,2]
[408714408,1774165832681,-559.01632212,0.0001316,2]
[408714409,1774165832691,-297.11648211,0.00013163,2]
[408714410,1774165832705,-200.0,0.00013163,2]
[408714411,1774165832714,-151.0,0.00013167,2]
[408714412,1774165832724,-260.23663215,0.00013169,3]
[408714413,1774165832736,-980.43715024,0.00013169,3]
[408714414,1774165832747,-500.0,0.00013169,2]
[408714415,1774165832756,-441.18354298,0.00013169,2]
[408714416,1774165832765,-242.49095654,0.00013169,2]
[408714417,1774165832778,-500.0,0.00013169,2]
[408714418,1774165832791,-500.0,0.00013169,2]
[408714419,1774165832800,-500.0,0.00013169,2]
[408714420,1774165832810,-500.0,0.00013169,2]
[408714421,1774165832820,-500.0,0.00013169,2]
[408714422,1774165832829,-184.43874524,0.00013169,2]
[408714423,1774165832840,-500.0,0.00013169,2]
[408714424,1774165832851,-500.0,0.00013169,2]
[408714425,1774165832862,-500.0,0.00013169,2]
[408714426,1774165832872,-500.0,0.00013169,2]
[408714427,1774165832882,-500.0,0.00013169,2]
[408714428,1774165832892,-500.0,0.00013169,2]
[408714429,1774165832902,-500.0,0.00013169,2]
[408714430,1774165832912,-500.0,0.00013169,2]
[408714431,1774165832922,-500.0,0.00013169,2]
[408714432,1774165832932,-500.0,0.00013169,2]
[408714433,1774165832942,-500.0,0.00013169,2]
[408714434,1774165832952,-500.0,0.00013169,2]
[408714435,1774165832961,-500.0,0.00013169,2]
[408714436,1774165832971,-500.0,0.00013169,2]
[408714437,1774165832980,-500.0,0.00013169,2]
[408714438,1774165832989,-200.23349348,0.00013169,2]
[408714439,1774165832999,-848.15836396,0.00013169,2]
[408714440,1774165833008,-848.15836396,0.00013169,2]
[408714441,1774165833018,-848.15836396,0.00013169,2]
[408714442,1774165833027,-848.15836396,0.00013169,2]
[408714443,1774165833036,-848.15836396,0.00013169,2]
[408714444,1774165833046,-848.15836396,0.00013169,2]
[408714445,1774165833055,-848.15836396,0.00013169,2]
[408714446,1774165833065,-848.15836396,0.00013169,2]
[408714447,1774165833075,-848.15836396,0.00013169,2]
[408714448,1774165833084,-848.15836396,0.00013169,2]
[408714449,1774165833094,-848.15836396,0.00013169,2]
[408714450,1774165833104,-848.15836396,0.00013169,2]
[408714451,1774165833113,-500.0,0.00013169,2]
[408714452,1774165833123,-500.0,0.00013169,2]
[408714453,1774165833134,-500.0,0.00013169,2]
[408714454,1774165833144,-500.0,0.00013169,2]
[408714455,1774165833154,-500.0,0.00013169,2]
[408714456,1774165833164,-500.0,0.00013169,2]
[408714457,1774165833178,-500.0,0.00013169,2]
[408714458,1774165833188,-438.39802946,0.00013169,2]
[408714459,1774165833198,-500.0,0.00013169,2]
[408714461,1774165833207,-500.0,0.00013169,2]
[408714463,1774165833217,-500.0,0.00013169,2]
[408714465,1774165833227,-837.38809902,0.00013169,2]
[408714467,1774165833238,-837.38809902,0.00013169,2]
[408714469,1774165833247,-837.38809902,0.00013169,2]
[408714471,1774165833257,-837.38809902,0.00013169,2]
[408714473,1774165833266,-837.38809902,0.00013169,2]
[408714475,1774165833275,-837.38809902,0.00013169,2]
[408714477,1774165833284,-837.38809902,0.00013169,2]
[408714479,1774165833294,-837.38809902,0.00013169,2]
[408714481,1774165833307,-837.38809902,0.00013169,2]
[408714483,1774165833317,-837.38809902,0.00013169,2]
[408714485,1774165833326,-837.38809902,0.00013169,2]
[408714487,1774165833336,-837.38809902,0.00013169,2]
[408714489,1774165833345,-837.38809902,0.00013169,2]
[408714491,1774165833354,-837.38809902,0.00013169,2]
[408714492,1774165833364,-837.38809902,0.00013169,2]
[408714494,1774165833374,-837.38809902,0.00013169,2]
[408714496,1774165833383,-837.38809902,0.00013169,2]
[408714497,1774165833393,-837.38809902,0.00013169,2]
[408714498,1774165833402,-837.38809902,0.00013169,2]
[408714499,1774165833413,-837.38809902,0.00013169,2]
[408714500,1774165833422,-837.38809902,0.00013169,2]
[408714501,1774165833432,-837.38809902,0.00013169,2]
[408714502,1774165833441,-837.38809902,0.00013169,2]
[408714503,1774165833451,-837.38809902,0.00013169,2]
[408714504,1774165833460,-837.38809902,0.00013169,2]
[408714505,1774165833472,-837.38809902,0.00013169,2]
[408714506,1774165833482,-837.38809902,0.00013169,2]
[408714507,1774165833491,-837.38809902,0.00013169,2]
[408714508,1774165833502,-837.38809902,0.00013169,2]
[408714509,1774165833513,-837.38809902,0.00013169,2]
[408714510,1774165833522,-837.38809902,0.00013169,2]
[408714511,1774165833533,-837.38809902,0.00013169,2]
[408714512,1774165833543,-837.38809902,0.00013169,2]
[408714513,1774165833553,-837.38809902,0.00013169,2]
[408714514,1774165833568,-837.38809902,0.00013169,2]
[408714515,1774165833578,-837.38809902,0.00013169,2]
[408714516,1774165833589,-837.38809902,0.00013169,2]
[408714517,1774165833599,-837.38809902,0.00013169,2]
[408714518,1774165833609,-837.38809902,0.00013169,2]
[408714519,1774165833619,-300.0,0.00013169,2]
[408714520,1774165833629,-832.73594291,0.00013169,2]
[408714521,1774165833639,-832.73594291,0.00013169,2]
[408714522,1774165833649,-832.73594291,0.00013169,2]
[408714523,1774165833659,-832.73594291,0.00013169,2]
[408714524,1774165833668,-832.73594291,0.00013169,2]
[408714525,1774165833678,-832.73594291,0.00013169,2]
[408714526,1774165833688,-832.73594291,0.00013169,2]
[408714527,1774165833702,-832.73594291,0.00013169,2]
[408714528,1774165833711,-832.73594291,0.00013169,2]
[408714529,1774165833721,-832.73594291,0.00013169,2]
[408714530,1774165833731,-832.73594291,0.00013169,2]
[408714531,1774165833742,-832.73594291,0.00013169,2]
[408714532,1774165833752,-832.73594291,0.00013169,2]
[408714533,1774165833761,-832.73594291,0.00013169,2]
[408714534,1774165833775,-832.73594291,0.00013169,2]
[408714535,1774165833784,-832.73594291,0.00013169,2]
[408714536,1774165833795,-832.73594291,0.00013169,2]
[408714537,1774165833805,-832.73594291,0.00013169,2]
[408714538,1774165833815,-832.73594291,0.00013169,2]
[408714539,1774165833824,-832.73594291,0.00013169,2]
[408714540,1774165833834,-832.73594291,0.00013169,2]
[408714541,1774165833844,-832.73594291,0.00013169,2]
[408714542,1774165833853,-832.73594291,0.00013169,2]
[408714543,1774165833863,-832.73594291,0.00013169,2]
[408714544,1774165833872,-832.73594291,0.00013169,2]
[408714545,1774165833881,-832.73594295,0.00013169,2]
[408714546,1774165833890,-832.73594295,0.00013169,2]
[408714547,1774165833899,-493.6514,0.00013169,2]
[408714548,1774165833909,-5054.47990144,0.0001317,2]
[408714549,1774165833921,-2012.78354579,0.0001317,2]
[408714550,1774165833932,-15939.67404873,0.0001317,2]
[408714551,1774165833943,-425.6098,0.0001317,2]
[408714552,1774165834166,-467.99,0.0001317,2]
[408714553,1774165834178,-2498.70757123,0.0001317,2]
[408714554,1774165834189,-48136.45291203,0.0001317,2]
[408714555,1774165834200,-410.55372032,0.0001317,2]
[408714556,1774165834212,-299.3376428,0.0001317,2]
[408714561,1774165838325,-664.99384275,0.0001317,2]
[408714562,1774165838337,-2000.52045,0.0001317,2]
[408714563,1774165838350,-3310.41808183,0.0001317,2]
[408714564,1774165838362,-489.28128178,0.0001317,2]
[408714565,1774165838373,-2656.39440828,0.0001317,2]
[408714583,1774165840549,-1415632.80279302,0.0001317,2]
[408714584,1774165840559,-2500000.0,0.0001317,2]
[408714585,1774165840570,-500.0,0.00013173,2]
[408714586,1774165840581,-1680.0,0.0001327,2]
[408714587,1774165840591,-209.71,0.00013344,2]
[408714588,1774165840600,-209.71,0.00013618,2]
[408714589,1774165840609,-504.75807369,0.00013621,2]
[408714590,1774165840619,-500.0,0.00013621,2]
[408714591,1774165840629,-500.0,0.00013698,2]
[408714592,1774165840639,-500.0,0.00013698,2]
[408714593,1774165840648,-500.0,0.00013698,2]
[408714594,1774165840657,-500.0,0.00013698,2]
[408714595,1774165840667,-520.72935856,0.00013698,2]
[408714596,1774165840677,-500.0,0.00013698,2]
[408714597,1774165840686,-396.45,0.00013699,2]
[408714598,1774165840698,-200.0,0.00013699,2]
[408714599,1774165840708,-299.99,0.00013699,2]
[408714600,1774165840717,-6780.55,0.00013699,2]
[408714601,1774165840727,-150.99,0.00013699,2]
[408714602,1774165840737,-9350.46,0.00013699,2]
[408714603,1774165840747,-9999.99,0.00013699,2]
[408714604,1774165840756,-1209.03,0.00013699,2]
[408714605,1774165840766,-999.99,0.00013699,2]
[408714606,1774165840776,-500.0,0.00013699,2]
[408714607,1774165840786,-500.0,0.00013699,2]
[408714608,1774165840797,-500.0,0.00013699,2]
[408714609,1774165840807,-347.47666717,0.00013699,2]
[408714610,1774165840817,-500.0,0.00013699,2]
[408714611,1774165840827,-500.0,0.00013699,2]
[408714612,1774165840836,-500.0,0.00013699,2]
[408714613,1774165840846,-500.43058459,0.00013699,2]
[408714614,1774165840855,-500.0,0.00013699,2]
[408714615,1774165840865,-500.70382414,0.00013699,2]
[408714616,1774165840874,-500.0,0.00013699,2]
[408714617,1774165840884,-500.74920901,0.00013699,2]
[408714618,1774165840894,-500.4848322,0.00013699,2]
[408714619,1774165840903,-500.0,0.00013699,2]
[408714620,1774165840912,-500.0,0.00013699,2]
[408714621,1774165840921,-500.0,0.00013699,2]
[408714622,1774165840931,-500.55967201,0.00013699,2]
[408714623,1774165840940,-500.0,0.00013699,2]
[408714624,1774165840949,-500.0,0.00013699,2]
[408714625,1774165840959,-500.0,0.00013699,2]
[408714626,1774165840968,-500.0,0.00013699,2]
[408714627,1774165840978,-500.44177829,0.00013699,2]
[408714628,1774165840988,-500.0,0.00013699,2]
[408714629,1774165840999,-390.12270077,0.00013699,2]
[408714630,1774165841009,-323.15693905,0.00013699,2]
[408714631,1774165841020,-236.81,0.000137,2]
[408714632,1774165841031,-827.97,0.000137,2]
[408714633,1774165841042,-660.88,0.000137,2]
[408714634,1774165841054,-471.73,0.000137,2]
[408714635,1774165841064,-1998.73,0.000137,2]
[408714637,1774165841074,-250.66,0.000137,2]
[408714639,1774165841084,-18952.75,0.000137,2]
[408714641,1774165841094,-18952.75,0.000137,2]
[408714643,1774165841103,-211.43898215,0.00013711,2]
[408714645,1774165841114,-500.0,0.00013829,2]
[408714647,1774165841124,-500.0,0.00013829,2]
[408714649,1774165841133,-500.0,0.00013829,2]
[408714650,1774165841143,-500.0,0.00013829,2]
[408714651,1774165841153,-500.0,0.00013829,2]
[408714652,1774165841162,-600.0,0.00013829,2]
[408714653,1774165841172,-2500.0,0.00013829,2]
[408714654,1774165841181,-600.0,0.00013829,2]
[408714655,1774165841191,-600.0,0.00013829,2]
[408714656,1774165841200,-600.0,0.00013829,2]
[408714657,1774165841209,-600.0,0.00013829,2]
[408714658,1774165841219,-250.0,0.00013829,2]
[408714659,1774165841228,-195.0,0.00013829,2]
[408714660,1774165841238,-195.0,0.00013829,2]
[408714661,1774165841247,-195.0,0.00013829,2]
[408714662,1774165841258,-195.0,0.00013829,2]
[408714663,1774165841267,-274.8699727,0.00013829,2]
[408714664,1774165841277,-209.71,0.00013892,2]
[408714665,1774165841287,-521.0,0.00014,2]
[408714666,1774165841296,-209.71612025,0.00014166,2]
[408714668,1774165841305,-255.0,0.00014179,2]
[408714669,1774165841315,-655.4067427,0.00014247,2]
[408714670,1774165841324,-1000.0,0.00014247,2]
[408714671,1774165841333,-1000.0,0.00014247,2]
[408714672,1774165841344,-1000.0,0.00014247,2]
[408714673,1774165841354,-1000.0,0.00014247,2]
[408714674,1774165841364,-1001.53007131,0.00014247,2]
[408714675,1774165841373,-1000.0,0.00014247,2]
[408714676,1774165841382,-500.67270798,0.00014247,2]
[408714677,1774165841391,-1000.0,0.00014247,2]
[408714678,1774165841400,-713.64434561,0.00014247,2]
[408714679,1774165841411,-501.4021552,0.00014247,2]
[408714680,1774165841420,-1000.0,0.00014247,2]
[408714681,1774165841429,-1000.0,0.00014247,2]
[408714682,1774165841439,-1000.0,0.00014247,2]
[408714683,1774165841448,-11243.49734363,0.00014374,2]
[408714684,1774165841458,-13163.68844796,0.00014375,2]
[408714685,1774165841467,-396.45,0.00014384,2]
[408714686,1774165841477,-2403.0,0.000144,2]
[408714687,1774165841486,-698.79,0.000145,2]
[408714688,1774165841495,-2351.0,0.00014597,2]
[408714689,1774165841504,-1073.03260881,0.00014795,2]
[408714690,1774165841514,-1500.0,0.00014795,2]
[408714691,1774165841523,-759.99072283,0.00014795,2]
[408714692,1774165841533,-1500.0,0.00014795,2]
[408714693,1774165841542,-222.68518983,0.00014795,2]
[408714694,1774165841551,-1500.0,0.00014795,2]
[408714695,1774165841560,-396.45,0.00015068,2]
[408714696,1774165841570,-10903.52,0.0001531,2]
[408714697,1774165841579,-9999.99,0.0001531,2]
[408714698,1774165841588,-239.0,0.0001536,2]
[408714699,1774165841598,-433.0,0.00015381,2]
[408714700,1774165841608,-780.0,0.00015415,2]
[408714701,1774165841617,-11243.49734363,0.00015679,2]
[408714702,1774165841626,-13163.68844796,0.0001568,2]
[408714703,1774165841635,-161.0,0.0001568,2]
[408714704,1774165841644,-168.0,0.00015691,2]
[408714705,1774165841653,-943.0,0.00015692,2]
[408714706,1774165841663,-150.0,0.00015723,2]
[408714707,1774165841672,-284.69808,0.00015725,2]
[408714708,1774165841682,-396.45,0.00015753,2]
[408714709,1774165841692,-1214.0,0.00015786,2]
[408714710,1774165841705,-168.0,0.00015807,2]
[408714711,1774165841715,-1214.0,0.00015866,2]
[408714712,1774165841724,-160.0,0.00015896,2]
[408714713,1774165841733,-160.0,0.00015896,2]
[408714714,1774165841743,-979.16666667,0.00015896,2]
[408714715,1774165841752,-1214.0,0.00015922,2]
[408714716,1774165841762,-168.0,0.00015962,2]
[408714717,1774165841773,-250.0,0.00016053,2]
[408714718,1774165841783,-3292.0,0.00016057,2]
[408714719,1774165841792,-168.0,0.00016089,2]
[408714720,1774165841801,-168.0,0.00016111,2]
[408714721,1774165841811,-9999.99,0.00016116,2]
[408714722,1774165841820,-1214.0,0.00016217,2]
[408714723,1774165841829,-943.0,0.0001628,2]
[408714724,1774165841838,-471.73,0.000163,2]
[408714725,1774165841847,-1998.73,0.000163,2]
[408714726,1774165841857,-250.66,0.000163,2]
[408714727,1774165841868,-2460.73,0.00016369,2]
[408714728,1774165841878,-943.0,0.00016382,2]
[408714729,1774165841888,-236.81,0.000164,2]
[408714730,1774165841898,-827.97,0.000164,2]
[408714731,1774165841909,-943.0,0.00016416,2]
[408714732,1774165841919,-396.45,0.00016438,2]
[408714733,1774165841929,-187.106388,0.00016446,7]